[Event "Polofinale MCR junioru 2023"]
[Site "Czech Republic"]
[Date "2023.11.16"]
[Round "7.3"]
[White "Seidl, Jan"]
[Black "Skypala, Ondrej"]
[Result "1/2-1/2"]
[TimeControl "90 min per 40 moves + 15 min + 30 sec / move from move 1"]
[WhiteFideId "23714522"]
[BlackFideId "366285"]
[WhiteElo "2224"]
[BlackElo "2159"]

1. c4 {[%clk 01:30:55]} {[%emt 00:00:05]} Nf6 {[%clk 01:30:56]} {[%emt
00:00:05]} 2. Nc3 {[%clk 01:31:19]} {[%emt 00:00:05]} c5 {[%clk 01:30:36]}
{[%emt 00:00:50]} 3. Nf3 {[%clk 01:30:39]} {[%emt 00:01:10]} Nc6 {[%clk
01:30:58]} {[%emt 00:00:09]} 4. d4 {[%clk 01:29:06]} {[%emt 00:02:02]} cxd4
{[%clk 01:29:40]} {[%emt 00:01:49]} 5. Nxd4 {[%clk 01:29:30]} {[%emt 00:00:05]}
g6 {[%clk 01:29:00]} {[%emt 00:01:10]} 6. e4 {[%clk 01:29:19]} {[%emt
00:00:41]} Bg7 {[%clk 01:29:20]} {[%emt 00:00:10]} 7. Be3 {[%clk 01:28:22]}
{[%emt 00:01:27]} O-O {[%clk 01:24:52]} {[%emt 00:04:59]} 8. Be2 {[%clk
01:26:24]} {[%emt 00:02:27]} Qb6 {[%clk 01:22:20]} {[%emt 00:03:03]} 9. Nb3
{[%clk 01:12:38]} {[%emt 00:14:15]} Qd8 {[%clk 01:22:36]} {[%emt 00:00:15]} 10.
O-O {[%clk 01:12:36]} {[%emt 00:00:31]} d6 {[%clk 01:22:59]} {[%emt 00:00:07]}
11. Nd4 {[%clk 01:11:57]} {[%emt 00:01:10]} a6 {[%clk 01:19:23]} {[%emt
00:04:06]} 12. Nc2 {[%clk 01:06:42]} {[%emt 00:05:44]} Be6 {[%clk 01:13:52]}
{[%emt 00:06:00]} 13. Qd2 {[%clk 01:00:40]} {[%emt 00:06:32]} Rc8 {[%clk
01:08:51]} {[%emt 00:05:31]} 14. Rac1 {[%clk 00:54:15]} {[%emt 00:06:55]} Qa5
{[%clk 01:05:38]} {[%emt 00:03:43]} 15. f3 {[%clk 00:48:33]} {[%emt 00:06:13]}
Rfe8 {[%clk 01:03:48]} {[%emt 00:02:20]} 16. Na3 {[%clk 00:27:08]} {[%emt
00:21:54]} Nd7 {[%clk 00:58:44]} {[%emt 00:05:34]} 17. Rfd1 {[%clk 00:24:42]}
{[%emt 00:02:57]} Nc5 {[%clk 00:56:25]} {[%emt 00:02:49]} 18. Nd5 {[%clk
00:20:23]} {[%emt 00:04:48]} Qxd2 {[%clk 00:56:47]} {[%emt 00:00:08]} 19. Rxd2
{[%clk 00:20:49]} {[%emt 00:00:05]} Bxd5 {[%clk 00:56:37]} {[%emt 00:00:40]} 20.
exd5 {[%clk 00:20:56]} {[%emt 00:00:22]} Nb4 {[%clk 00:56:38]} {[%emt
00:00:29]} 21. Nc2 {[%clk 00:15:14]} {[%emt 00:06:12]} Nxc2 {[%clk 00:52:59]}
{[%emt 00:04:09]} 22. Rcxc2 {[%clk 00:14:29]} {[%emt 00:01:15]} a5 {[%clk
00:53:19]} {[%emt 00:00:11]} 23. Kf2 {[%clk 00:14:06]} {[%emt 00:00:52]} b6
{[%clk 00:53:42]} {[%emt 00:00:08]} 24. b3 {[%clk 00:13:45]} {[%emt 00:00:51]}
f5 {[%clk 00:52:22]} {[%emt 00:01:49]} 25. Bf1 {[%emt 00:04:15]} 1/2-1/2

[Event "Polofinale MCR junioru 2023"]
[Site "Czech Republic"]
[Date "2023.11.16"]
[Round "7.4"]
[White "Soucek, Petr"]
[Black "Lihotsky, Lukas"]
[Result "1/2-1/2"]
[TimeControl "90 min per 40 moves + 15 min + 30 sec / move from move 1"]
[WhiteFideId "23715170"]
[BlackFideId "23727004"]
[WhiteElo "2227"]
[BlackElo "2100"]

1. e4 {[%clk 01:30:41]} {[%emt 00:00:19]} c6 {[%clk 01:30:53]} {[%emt
00:00:09]} 2. d4 {[%clk 01:31:02]} {[%emt 00:00:08]} d5 {[%clk 01:31:19]}
{[%emt 00:00:04]} 3. Nc3 {[%clk 01:31:28]} {[%emt 00:00:03]} dxe4 {[%clk
01:31:45]} {[%emt 00:00:05]} 4. Nxe4 {[%clk 01:31:55]} {[%emt 00:00:03]} Bf5
{[%clk 01:32:09]} {[%emt 00:00:06]} 5. Ng3 {[%clk 01:32:21]} {[%emt 00:00:03]}
Bg6 {[%clk 01:32:35]} {[%emt 00:00:05]} 6. Nh3 {[%clk 01:32:48]} {[%emt
00:00:03]} Nf6 {[%clk 01:32:57]} {[%emt 00:00:08]} 7. Nf4 {[%clk 01:33:08]}
{[%emt 00:00:10]} Nbd7 {[%clk 01:33:17]} {[%emt 00:00:10]} 8. Bc4 {[%clk
01:32:49]} {[%emt 00:00:49]} Qc7 {[%clk 01:31:55]} {[%emt 00:01:52]} 9. O-O
{[%clk 01:31:11]} {[%emt 00:02:07]} e6 {[%clk 01:32:18]} {[%emt 00:00:08]} 10.
Re1 {[%clk 01:31:09]} {[%emt 00:00:31]} Bd6 {[%clk 01:32:19]} {[%emt 00:00:30]}
11. Rxe6+ {[%clk 01:26:51]} {[%emt 00:04:48]} fxe6 {[%clk 01:32:43]} {[%emt
00:00:06]} 12. Nxe6 {[%clk 01:27:15]} {[%emt 00:00:05]} Qb6 {[%clk 01:33:10]}
{[%emt 00:00:03]} 13. Qe2 {[%clk 01:27:15]} {[%emt 00:00:31]} Ke7 {[%clk
01:33:31]} {[%emt 00:00:09]} 14. Nc7+ {[%clk 01:22:55]} {[%emt 00:04:49]} Kf8
{[%clk 01:26:47]} {[%emt 00:07:12]} 15. Ne6+ {[%clk 01:10:21]} {[%emt
00:13:06]} Ke7 {[%clk 01:27:12]} {[%emt 00:00:06]} 16. Nc7+ {[%clk 01:09:44]}
{[%emt 00:01:07]} 1/2-1/2

[Event "Polofinale MCR junioru 2023"]
[Site "Czech Republic"]
[Date "2023.11.16"]
[Round "7.5"]
[White "Vojta, Jakub"]
[Black "Janous, Marek"]
[Result "1/2-1/2"]
[TimeControl "90 min per 40 moves + 15 min + 30 sec / move from move 1"]
[WhiteFideId "382515"]
[BlackFideId "23709650"]
[WhiteElo "2267"]
[BlackElo "2098"]

1. c3 {[%clk 01:30:47]} {[%emt 00:00:12]} d5 {[%clk 01:26:59]} {[%emt
00:04:01]} 2. Nf3 {[%clk 01:29:45]} {[%emt 00:01:32]} Nf6 {[%clk 01:23:13]}
{[%emt 00:04:16]} 3. Qc2 {[%clk 01:29:43]} {[%emt 00:00:32]} c5 {[%clk
01:21:22]} {[%emt 00:02:21]} 4. g3 {[%clk 01:28:55]} {[%emt 00:01:18]} Nc6
{[%clk 01:21:12]} {[%emt 00:00:40]} 5. Bg2 {[%clk 01:29:05]} {[%emt 00:00:20]}
Bg4 {[%clk 01:15:29]} {[%emt 00:06:12]} 6. d3 {[%clk 01:26:54]} {[%emt
00:02:41]} e6 {[%clk 01:09:57]} {[%emt 00:06:03]} 7. O-O {[%clk 01:27:06]}
{[%emt 00:00:17]} Be7 {[%clk 01:09:51]} {[%emt 00:00:36]} 8. a4 {[%clk
01:22:22]} {[%emt 00:05:15]} O-O {[%clk 01:09:21]} {[%emt 00:00:59]} 9. e4
{[%clk 01:22:04]} {[%emt 00:00:48]} c4 {[%clk 00:52:25]} {[%emt 00:17:27]} 10.
exd5 {[%clk 01:17:33]} {[%emt 00:05:01]} cxd3 {[%clk 00:51:56]} {[%emt
00:00:59]} 11. Qxd3 {[%clk 01:17:47]} {[%emt 00:00:16]} Bf5 {[%clk 00:45:15]}
{[%emt 00:07:11]} 12. Qb5 {[%clk 01:12:56]} {[%emt 00:05:21]} Qxd5 {[%clk
00:43:31]} {[%emt 00:02:13]} 13. Nh4 {[%clk 01:07:54]} {[%emt 00:05:33]} Be4
{[%clk 00:42:39]} {[%emt 00:01:22]} 14. Nd2 {[%clk 01:05:58]} {[%emt 00:02:25]}
Bxg2 {[%clk 00:42:31]} {[%emt 00:00:38]} 15. Nxg2 {[%clk 01:06:26]} {[%emt
00:00:02]} a6 {[%clk 00:39:53]} {[%emt 00:03:09]} 1/2-1/2

[Event "Polofinale MCR junioru 2023"]
[Site "Czech Republic"]
[Date "2023.11.16"]
[Round "7.6"]
[White "Bokhnak, Timofey"]
[Black "Mach, Petr"]
[Result "1-0"]
[TimeControl "90 min per 40 moves + 15 min + 30 sec / move from move 1"]
[WhiteFideId "14172976"]
[BlackFideId "383546"]
[WhiteElo "2210"]
[BlackElo "2084"]

1. e4 {[%clk 01:30:57]} {[%emt 00:00:03]} Nc6 {[%clk 01:30:37]} {[%emt
00:00:24]} 2. Nc3 {[%clk 01:27:50]} {[%emt 00:03:37]} Nf6 {[%clk 01:28:39]}
{[%emt 00:02:28]} 3. d4 {[%clk 01:24:31]} {[%emt 00:03:48]} d5 {[%clk
01:27:29]} {[%emt 00:01:39]} 4. e5 {[%clk 01:22:47]} {[%emt 00:02:15]} Ne4
{[%clk 01:26:25]} {[%emt 00:01:34]} 5. Nxe4 {[%clk 01:19:04]} {[%emt 00:04:13]}
dxe4 {[%clk 01:26:13]} {[%emt 00:00:43]} 6. c3 {[%clk 01:18:23]} {[%emt
00:01:10]} f6 {[%clk 01:22:46]} {[%emt 00:03:56]} 7. Bc4 {[%clk 01:03:36]}
{[%emt 00:15:18]} Na5 {[%clk 01:13:57]} {[%emt 00:09:19]} 8. Be2 {[%clk
00:58:54]} {[%emt 00:05:12]} Qd5 {[%clk 01:05:01]} {[%emt 00:09:25]} 9. Bf4
{[%clk 00:52:34]} {[%emt 00:06:50]} Bf5 {[%clk 01:02:09]} {[%emt 00:03:21]} 10.
exf6 {[%clk 00:47:16]} {[%emt 00:05:50]} O-O-O {[%clk 01:02:15]} {[%emt
00:00:25]} 11. b4 {[%clk 00:35:27]} {[%emt 00:12:18]} Nc4 {[%clk 00:55:16]}
{[%emt 00:07:28]} 12. Qb3 {[%clk 00:35:43]} {[%emt 00:00:15]} Nb6 {[%clk
00:54:46]} {[%emt 00:01:00]} 13. fxe7 {[%clk 00:34:06]} {[%emt 00:02:07]} Bxe7
{[%clk 00:55:02]} {[%emt 00:00:14]} 14. Qxd5 {[%clk 00:29:23]} {[%emt
00:05:13]} Nxd5 {[%clk 00:55:27]} {[%emt 00:00:04]} 15. Bd2 {[%clk 00:28:21]}
{[%emt 00:01:33]} Rhf8 {[%clk 00:53:17]} {[%emt 00:02:40]} 16. Bc4 {[%clk
00:27:53]} {[%emt 00:00:58]} Bh4 {[%clk 00:30:12]} {[%emt 00:23:34]} 17. Bxd5
{[%clk 00:26:50]} {[%emt 00:01:34]} Rxd5 {[%clk 00:30:37]} {[%emt 00:00:05]} 18.
Be3 {[%clk 00:26:11]} {[%emt 00:01:09]} Bd7 {[%clk 00:29:15]} {[%emt 00:01:52]}
19. Ne2 {[%clk 00:17:37]} {[%emt 00:09:03]} Bb5 {[%clk 00:27:22]} {[%emt
00:02:23]} 20. Rc1 {[%clk 00:15:51]} {[%emt 00:02:17]} Bc4 {[%clk 00:27:26]}
{[%emt 00:00:25]} 21. Rc2 {[%clk 00:16:04]} {[%emt 00:00:17]} a5 {[%clk
00:22:06]} {[%emt 00:05:50]} 22. a3 {[%clk 00:16:12]} {[%emt 00:00:23]} axb4
{[%clk 00:22:29]} {[%emt 00:00:06]} 23. axb4 {[%clk 00:16:35]} {[%emt
00:00:07]} Kd7 {[%clk 00:22:36]} {[%emt 00:00:24]} 24. O-O {[%clk 00:14:31]}
{[%emt 00:02:34]} Ra8 {[%clk 00:22:58]} {[%emt 00:00:08]} 25. f3 {[%clk
00:12:25]} {[%emt 00:02:37]} Rf5 {[%clk 00:20:32]} {[%emt 00:02:55]} 26. f4
{[%clk 00:11:27]} {[%emt 00:01:27]} Ra3 {[%clk 00:19:21]} {[%emt 00:01:42]} 27.
Rfc1 {[%clk 00:10:02]} {[%emt 00:01:52]} h5 {[%clk 00:17:43]} {[%emt 00:02:10]}
28. h3 {[%clk 00:10:13]} {[%emt 00:00:19]} Rf8 {[%clk 00:17:19]} {[%emt
00:00:52]} 29. g4 {[%clk 00:09:35]} {[%emt 00:01:12]} Rb3 {[%clk 00:15:04]}
{[%emt 00:02:44]} 30. d5 {[%clk 00:08:41]} {[%emt 00:01:24]} Bf6 {[%clk
00:03:01]} {[%emt 00:12:33]} 31. g5 {[%clk 00:09:06]} {[%emt 00:00:05]} Bxe2
{[%clk 00:03:23]} {[%emt 00:00:09]} 32. gxf6 {[%clk 00:08:12]} {[%emt
00:01:24]} Bc4 {[%clk 00:03:47]} {[%emt 00:00:04]} 33. fxg7 {[%clk 00:08:21]}
{[%emt 00:00:22]} Rg8 {[%clk 00:04:12]} {[%emt 00:00:05]} 34. Rg2 {[%clk
00:07:38]} {[%emt 00:01:11]} Bxd5 {[%clk 00:04:39]} {[%emt 00:00:05]} 35. Rg5
{[%clk 00:06:41]} {[%emt 00:01:26]} c6 {[%clk 00:03:28]} {[%emt 00:01:42]} 36.
Bd4 {[%clk 00:06:42]} {[%emt 00:00:28]} h4 {[%clk 00:03:25]} {[%emt 00:00:34]}
37. f5 {[%clk 00:06:08]} {[%emt 00:01:04]} Rb2 {[%clk 00:03:43]} {[%emt
00:00:12]} 38. Rf1 {[%clk 00:04:42]} {[%emt 00:01:55]} Ra8 {[%clk 00:03:49]}
{[%emt 00:00:25]} 39. c4 {[%clk 00:04:43]} {[%emt 00:00:28]} Rxb4 {[%clk
00:04:14]} {[%emt 00:00:06]} 40. cxd5 {[%clk 00:05:03]} {[%emt 00:00:10]} Rxd4
{[%clk 00:04:35]} {[%emt 00:00:09]} 41. dxc6+ {[%clk 00:05:19]} {[%emt
00:00:13]} 1-0

[Event "Polofinale MCR junioru 2023"]
[Site "Czech Republic"]
[Date "2023.11.16"]
[Round "7.7"]
[White "Kubiczek, Michal"]
[Black "Winter, Ondrej"]
[Result "1-0"]
[TimeControl "90 min per 40 moves + 15 min + 30 sec / move from move 1"]
[WhiteFideId "23706996"]
[BlackFideId "23702192"]
[WhiteElo "2068"]
[BlackElo "2163"]

1. d4 {[%clk 01:30:57]} {[%emt 00:00:02]} Nf6 {[%clk 01:30:52]} {[%emt
00:00:09]} 2. c4 {[%clk 01:31:06]} {[%emt 00:00:20]} g6 {[%clk 01:31:17]}
{[%emt 00:00:05]} 3. g3 {[%clk 01:31:19]} {[%emt 00:00:17]} c6 {[%clk
01:31:00]} {[%emt 00:00:48]} 4. Bg2 {[%clk 01:31:23]} {[%emt 00:00:26]} d5
{[%clk 01:31:26]} {[%emt 00:00:04]} 5. Qa4 {[%clk 01:30:02]} {[%emt 00:01:51]}
dxc4 {[%clk 01:28:44]} {[%emt 00:03:13]} 6. Qxc4 {[%clk 01:29:41]} {[%emt
00:00:50]} Bg7 {[%clk 01:28:17]} {[%emt 00:00:57]} 7. Nf3 {[%clk 01:29:01]}
{[%emt 00:01:09]} O-O {[%clk 01:28:21]} {[%emt 00:00:26]} 8. O-O {[%clk
01:28:16]} {[%emt 00:01:16]} Nbd7 {[%clk 01:25:01]} {[%emt 00:03:50]} 9. Nc3
{[%clk 01:23:13]} {[%emt 00:05:32]} Nb6 {[%clk 01:24:26]} {[%emt 00:01:05]} 10.
Qd3 {[%clk 01:23:22]} {[%emt 00:00:19]} Be6 {[%clk 01:21:00]} {[%emt 00:03:58]}
11. Rd1 {[%clk 01:20:23]} {[%emt 00:03:29]} a5 {[%clk 01:17:55]} {[%emt
00:03:36]} 12. e4 {[%clk 01:12:36]} {[%emt 00:08:17]} a4 {[%clk 01:17:09]}
{[%emt 00:01:16]} 13. h3 {[%clk 01:08:16]} {[%emt 00:04:50]} Qc8 {[%clk
01:16:50]} {[%emt 00:00:49]} 14. Kh2 {[%clk 01:07:44]} {[%emt 00:01:02]} Rd8
{[%clk 01:14:26]} {[%emt 00:02:54]} 15. Qc2 {[%clk 01:00:56]} {[%emt 00:07:17]}
Ra5 {[%clk 01:11:06]} {[%emt 00:03:50]} 16. Ne5 {[%clk 00:46:13]} {[%emt
00:15:13]} Nfd7 {[%clk 01:08:11]} {[%emt 00:03:26]} 17. Nf3 {[%clk 00:44:52]}
{[%emt 00:01:50]} Nf6 {[%clk 00:52:55]} {[%emt 00:15:47]} 18. Ne5 {[%clk
00:43:40]} {[%emt 00:01:42]} Nfd7 {[%clk 00:36:31]} {[%emt 00:16:53]} 19. Nf3
{[%clk 00:43:58]} {[%emt 00:00:12]} h6 {[%clk 00:35:03]} {[%emt 00:01:59]} 20.
Bd2 {[%clk 00:33:41]} {[%emt 00:10:46]} Rh5 {[%clk 00:28:04]} {[%emt 00:07:28]}
21. Ne2 {[%clk 00:30:29]} {[%emt 00:03:42]} g5 {[%clk 00:20:41]} {[%emt
00:07:54]} 22. h4 {[%clk 00:23:32]} {[%emt 00:07:27]} g4 {[%clk 00:11:05]}
{[%emt 00:10:07]} 23. Ne1 {[%clk 00:20:59]} {[%emt 00:03:02]} Nc4 {[%clk
00:08:58]} {[%emt 00:02:39]} 24. Nf4 {[%clk 00:18:15]} {[%emt 00:03:12]} Rb5
{[%clk 00:08:09]} {[%emt 00:01:19]} 25. Nxe6 {[%clk 00:18:05]} {[%emt
00:00:40]} Nxb2 {[%clk 00:08:30]} {[%emt 00:00:09]} 26. Rdb1 {[%clk 00:16:28]}
{[%emt 00:02:07]} fxe6 {[%clk 00:08:49]} {[%emt 00:00:12]} 27. Rxb2 {[%clk
00:16:46]} {[%emt 00:00:13]} Bxd4 {[%clk 00:09:02]} {[%emt 00:00:17]} 28. Rxb5
{[%clk 00:15:47]} {[%emt 00:01:28]} Bxa1 {[%clk 00:09:09]} {[%emt 00:00:23]} 29.
Rh5 {[%clk 00:14:52]} {[%emt 00:01:25]} Nf6 {[%clk 00:05:58]} {[%emt 00:03:41]}
30. Rxh6 {[%clk 00:13:59]} {[%emt 00:01:23]} e5 {[%clk 00:06:11]} {[%emt
00:00:17]} 31. Ba5 {[%clk 00:10:01]} {[%emt 00:04:28]} Rf8 {[%clk 00:05:08]}
{[%emt 00:01:33]} 32. Qc1 {[%clk 00:08:22]} {[%emt 00:02:09]} Bd4 {[%clk
00:05:36]} {[%emt 00:00:02]} 33. Nc2 {[%clk 00:06:38]} {[%emt 00:02:14]} Bxf2
{[%clk 00:01:59]} {[%emt 00:04:07]} 34. Qg5+ {[%clk 00:06:46]} {[%emt
00:00:21]} Kf7 {[%clk 00:02:29]} 35. Qg6+ {[%clk 00:07:04]} {[%emt 00:00:13]}
Ke6 {[%clk 00:02:47]} {[%emt 00:00:11]} 36. Qf5+ {[%clk 00:07:30]} {[%emt
00:00:05]} Kf7 {[%clk 00:03:03]} {[%emt 00:00:13]} 37. Qxf2 {[%clk 00:07:40]}
{[%emt 00:00:20]} Qe6 {[%clk 00:03:03]} {[%emt 00:00:30]} 38. Ne3 {[%clk
00:06:56]} {[%emt 00:01:14]} Kg8 {[%clk 00:03:05]} {[%emt 00:00:28]} 39. Qf5
{[%clk 00:06:52]} {[%emt 00:00:34]} Qxf5 40. Nxf5 {[%clk 00:07:20]} e6 {[%clk
00:03:21]} {[%emt 00:00:27]} 41. Bb4 {[%clk 00:06:57]} {[%emt 00:00:53]} Rf7
{[%clk 00:03:22]} {[%emt 00:00:29]} 42. Ne7+ {[%clk 00:06:20]} {[%emt
00:01:07]} Kg7 {[%clk 00:03:45]} {[%emt 00:00:06]} 43. Rg6+ {[%clk 00:06:34]}
{[%emt 00:00:17]} Kh7 {[%clk 00:04:13]} {[%emt 00:00:01]} 44. Bc3 {[%clk
00:05:05]} {[%emt 00:01:59]} 1-0